fUSD/lending_fUSD_20250929
["ID","MTS","AMOUNT","RATE_DAILY","PERIOD"]
[388417086,1759162251292,-10000.0,0.00020249,4]
[388417087,1759162251302,-25000.0,0.00020257,2]
[388417088,1759162251312,-326.19,0.00020269,2]
[388417089,1759162251322,-248.71531821,0.00020269,2]
[388417090,1759162251492,-3111.0,0.00020269,2]
[388417091,1759162251504,-160.0,0.00020269,2]
[388417092,1759162251514,-334.5472959,0.00020269,2]
[388417093,1759162251524,-247.99,0.00020272,2]
[388417094,1759162251534,-162.380719,0.00020274,2]
[388417095,1759162251544,-5000.0,0.00020283,2]
[388417096,1759162251553,-514.89,0.00020309,2]
[388417097,1759162251563,-150.68,0.00020309,2]
[388417098,1759162251573,-151.25,0.00020309,2]
[388417099,1759162251582,-151.29,0.00020309,2]
[388417100,1759162251591,-1249.17,0.00020315,2]
[388417101,1759162251600,-341.0,0.00020315,2]
[388417102,1759162251609,-4337.71,0.00020345,2]
[388417104,1759162251618,-150.0,0.00020353,2]
[388417105,1759162251628,-473.47,0.00020364,2]
[388417106,1759162251637,-473.47,0.00020364,2]
[388417107,1759162251647,-471.67,0.00020364,2]
[388417108,1759162251657,-500.0,0.0002037,2]
[388417109,1759162251666,-1000.0,0.0002037,2]
[388417110,1759162251676,-1668.92216994,0.000204,2]
[388417111,1759162251686,-202.54,0.000204,2]
[388417112,1759162251696,-200.271108,0.000204,2]
[388417113,1759162251706,-341.0,0.00020416,2]
[388417114,1759162251716,-25000.0,0.00020416,2]
[388417116,1759162251727,-341.0,0.00020458,2]
[388417117,1759162251736,-341.0,0.00020468,2]
[388417118,1759162251747,-5000.0,0.00020469,2]
[388417119,1759162251756,-341.0,0.00020471,2]
[388417120,1759162251766,-5000.0,0.00020479,2]
[388417121,1759162251776,-5000.0,0.00020491,2]
[388417122,1759162251785,-385.0,0.000205,2]
[388417123,1759162251795,-1000.0,0.00020516,2]
[388417124,1759162251805,-500.0,0.00020516,2]
[388417125,1759162251815,-2000.0,0.00020516,2]
[388417126,1759162251824,-500.0,0.00020516,2]
[388417128,1759162251835,-1000.0,0.00020516,2]
[388417129,1759162251844,-2000.0,0.00020516,2]
[388417130,1759162251854,-635.71807562,0.00020516,2]
[388417131,1759162251864,-500.0,0.00020516,2]
[388417132,1759162251874,-2000.0,0.00020516,2]
[388417133,1759162251886,-1500.0,0.00020516,2]
[388417134,1759162251895,-341.0,0.00020525,2]
[388417135,1759162251905,-341.0,0.00020537,2]
[388417136,1759162251915,-151.0,0.00020544,2]
[388417137,1759162251925,-23581.44,0.00020545,2]
[388417138,1759162251935,-21185.67,0.00020548,2]
[388417139,1759162251946,-189.32,0.00020548,2]
[388417141,1759162251956,-16465.76314761,0.00020555,2]
[388417142,1759162251966,-1668.92216994,0.000206,2]
[388417143,1759162251976,-2664.0,0.00020633,2]
[388417144,1759162251986,-5000.0,0.00020648,2]
[388417145,1759162251996,-2351.0,0.0002065,2]
[388417146,1759162252006,-1849.66,0.00020653,2]
[388417147,1759162252016,-1972.61,0.00020658,2]
[388417148,1759162252025,-200.0,0.0002066,2]
[388417149,1759162252035,-5000.0,0.0002069,2]
[388417150,1759162252046,-5000.0,0.00020697,2]
[388417151,1759162252056,-22335.28056582,0.000207,2]
[388417152,1759162252066,-341.0,0.00020727,2]
[388417153,1759162252075,-341.0,0.00020731,2]
[388417154,1759162252084,-341.0,0.00020745,2]
[388417155,1759162252094,-150.0,0.00020752,2]
[388417156,1759162252103,-1196.09,0.0002076,2]
[388417157,1759162252112,-284.7,0.00020769,2]
[388417158,1759162252121,-341.0,0.00020781,2]
[388417159,1759162252131,-700.0,0.00020795,2]
[388417160,1759162252140,-1668.92216994,0.000208,2]
[388417161,1759162252149,-168.3888056,0.00020822,2]
[388417162,1759162252159,-5000.0,0.0002084,2]
[388417163,1759162252168,-300.0,0.00020849,2]
[388417164,1759162252185,-77473.42632938,0.0002085,2]
[388417165,1759162252195,-341.0,0.00020853,2]
[388417166,1759162252204,-5000.0,0.00020867,2]
[388417167,1759162252214,-5000.0,0.00020881,2]
[388417168,1759162252223,-341.0,0.00020896,2]
[388417169,1759162252233,-173.52271755,0.00020926,15]
[388417170,1759162252243,-500.0,0.00020973,2]
[388417171,1759162252253,-500.0,0.00020973,2]
[388417172,1759162252263,-500.0,0.00020973,2]
[388417173,1759162252272,-589.47166915,0.00020973,2]
[388417174,1759162252282,-500.0,0.00020973,2]
[388417175,1759162252292,-500.0,0.00020973,2]
[388417176,1759162252302,-500.0,0.00020973,2]
[388417177,1759162252312,-500.0,0.00020973,2]
[388417178,1759162252322,-547.15226032,0.00020973,2]
[388417179,1759162252331,-500.0,0.00020973,2]
[388417180,1759162252341,-500.0,0.00020973,2]
[388417181,1759162252351,-500.0,0.00020973,2]
[388417182,1759162252361,-165.18678318,0.00020973,2]
[388417183,1759162252371,-500.0,0.00020973,2]
[388417184,1759162252385,-501.62690061,0.00020973,2]
[388417185,1759162252395,-261.90604596,0.00020973,2]
[388417186,1759162252405,-635.11771507,0.00020973,2]
[388417187,1759162252415,-500.0,0.00020973,2]
[388417189,1759162252426,-500.0,0.00020973,2]
[388417190,1759162252435,-500.0,0.00020973,2]
[388417191,1759162252445,-500.0,0.00020973,2]
[388417192,1759162252457,-500.0,0.00020973,2]
[388417193,1759162252467,-500.0,0.00020973,2]
[388417194,1759162252476,-500.0,0.00020973,2]
[388417195,1759162252486,-157.02840596,0.00020973,2]
[388417196,1759162252495,-412.60064734,0.00020973,2]
[388417197,1759162252506,-500.0,0.00020973,2]
[388417198,1759162252515,-500.0,0.00020973,2]
[388417199,1759162252526,-500.0,0.00020973,2]
[388417200,1759162252537,-557.78613881,0.00020973,2]
[388417201,1759162252547,-500.0,0.00020973,2]
[388417202,1759162252556,-500.0,0.00020973,2]
[388417203,1759162252566,-500.0,0.00020973,2]
[388417204,1759162252582,-165.87224074,0.00020973,2]
[388417205,1759162252592,-500.0,0.00020973,2]
[388417206,1759162252603,-164.24172155,0.00020973,2]
[388417207,1759162252612,-500.0,0.00020973,2]
[388417208,1759162252622,-500.0,0.00020973,2]
[388417209,1759162252632,-500.0,0.00020973,2]
[388417210,1759162252643,-150.0,0.00020973,2]
[388417211,1759162252653,-500.0,0.00020973,2]
[388417212,1759162252664,-508.27789364,0.00020973,2]
[388417213,1759162252674,-500.0,0.00020973,2]
[388417214,1759162252684,-500.0,0.00020973,2]
[388417215,1759162252694,-500.0,0.00020973,2]
[388417216,1759162252704,-500.0,0.00020973,2]
[388417217,1759162252714,-500.0,0.00020973,2]
[388417218,1759162252724,-500.0,0.00020973,2]
[388417219,1759162252733,-500.0,0.00020973,2]
[388417220,1759162252743,-500.0,0.00020973,2]
[388417221,1759162252752,-500.0,0.00020973,2]
[388417222,1759162252763,-500.65353541,0.00020973,2]
[388417223,1759162252773,-500.0,0.00020973,2]
[388417224,1759162252783,-500.0,0.00020973,2]
[388417225,1759162252794,-500.0,0.00020973,2]
[388417226,1759162252804,-2242.5,0.00020983,2]
[388417227,1759162252813,-1000.0,0.00020986,2]
[388417228,1759162252823,-351.92318229,0.00020998,2]
[388417229,1759162252834,-2000.0,0.00021,2]
[388417230,1759162252844,-2000.0,0.00021,2]
[388417231,1759162252854,-1000.0,0.00021,2]
[388417232,1759162252865,-4000.0,0.00021,4]
[388417233,1759162252875,-198.56984466,0.00021003,2]
[388417234,1759162252885,-600.0,0.00021058,2]
[388417235,1759162252895,-165.33,0.00021064,2]
[388417236,1759162252905,-2500.0,0.00021064,2]
[388417237,1759162252915,-2500.0,0.00021064,2]
[388417238,1759162252926,-500.0,0.00021064,2]
[388417239,1759162252936,-2000.0,0.00021072,2]
[388417240,1759162252945,-500.0,0.00021072,2]
[388417241,1759162252956,-151.0,0.00021092,2]
[388417242,1759162252966,-516.0,0.00021096,2]
[388417243,1759162252981,-5514.0,0.000211,5]
[388417244,1759162252991,-295.0,0.0002113,2]
[388417245,1759162253001,-491.89265,0.00021147,2]
[388417246,1759162253010,-164.17,0.00021185,2]
[388417247,1759162253020,-165.33,0.00021233,2]
[388417248,1759162253031,-1996.444,0.00021247,2]
[388417249,1759162253041,-174.685,0.00021247,2]
[388417251,1759162253052,-176.03,0.00021264,2]
[388417252,1759162253061,-200.0,0.00021304,2]
[388417253,1759162253072,-300.0,0.00021322,2]
[388417254,1759162253082,-6272.8,0.0002137,2]
[388417255,1759162253092,-174.61919141,0.0002137,2]
[388417256,1759162253102,-300.0,0.0002152,2]
[388417257,1759162253111,-700.17735972,0.00021521,2]
[388417258,1759162253121,-304.27145336,0.00021521,2]
[388417259,1759162253132,-1000.0,0.00021521,2]
[388417260,1759162253142,-1000.0,0.00021521,2]
[388417261,1759162253152,-1000.0,0.00021521,2]
[388417262,1759162253161,-1000.0,0.00021521,2]
[388417264,1759162253172,-1000.0,0.00021521,2]
[388417265,1759162253181,-1000.0,0.00021521,2]
[388417266,1759162253192,-1000.0,0.00021521,2]
[388417267,1759162253202,-1000.0,0.00021521,2]
[388417268,1759162253213,-1000.0,0.00021521,2]
[388417269,1759162253222,-1000.0,0.00021521,2]
[388417270,1759162253232,-1000.0,0.00021521,2]
[388417271,1759162253242,-155.986146,0.00021521,2]
[388417272,1759162253252,-1000.0,0.00021521,2]
[388417273,1759162253262,-456.33962356,0.00021521,2]
[388417274,1759162253272,-1000.0,0.00021521,2]
[388417275,1759162253282,-1000.0,0.00021521,2]
[388417277,1759162253293,-1000.0,0.00021521,2]
[388417278,1759162253303,-1000.0,0.00021521,2]
[388417279,1759162253313,-1000.0,0.00021521,2]
[388417280,1759162253324,-1000.0,0.00021521,2]
[388417281,1759162253334,-1000.0,0.00021521,2]
[388417282,1759162253345,-1000.0,0.00021521,2]
[388417283,1759162253356,-1000.0,0.00021521,2]
[388417284,1759162253366,-990.50435508,0.00021521,2]
[388417285,1759162253383,-250.0,0.00021521,2]
[388417286,1759162253394,-1000.0,0.00021521,2]
[388417287,1759162253405,-1000.0,0.00021521,2]
[388417289,1759162253415,-1000.0,0.00021521,2]
[388417290,1759162253426,-1000.0,0.00021521,2]
[388417291,1759162253437,-942.47240937,0.00021521,2]
[388417292,1759162253447,-1000.0,0.00021521,2]
[388417293,1759162253460,-527.2514745,0.00021521,2]
[388417294,1759162253470,-1000.0,0.00021521,2]
[388417295,1759162253480,-1000.0,0.00021521,2]
[388417296,1759162253489,-1000.0,0.00021521,2]
[388417297,1759162253499,-1000.0,0.00021521,2]
[388417298,1759162253509,-1000.0,0.00021521,2]
[388417299,1759162253519,-2044.0,0.00021569,2]
[388417300,1759162253531,-787.0,0.00021569,2]
[388417302,1759162253541,-603.0,0.00021569,2]
[388417303,1759162253551,-1306.0,0.00021569,2]
[388417304,1759162253563,-1584.0,0.00021569,2]
[388417305,1759162253574,-570.0,0.00021569,2]
[388417306,1759162253584,-814.0,0.00021609,2]
[388417307,1759162253594,-3000.0,0.00021612,2]
[388417308,1759162253606,-3000.0,0.00021612,2]
[388417309,1759162253616,-10000.0,0.00021619,6]
[388417310,1759162253626,-3398.0,0.00021623,2]
[388417311,1759162253636,-1264.0,0.00021623,2]
[388417312,1759162253647,-610.4613,0.00021635,2]
[388417313,1759162253658,-6232.0,0.00021638,2]
[388417315,1759162253668,-17369.844,0.00021638,2]
[388417316,1759162253678,-4113.0,0.00021638,2]
[388417317,1759162253688,-900.0,0.00021638,2]
[388417318,1759162253698,-257.91778498,0.00021638,2]
[388417319,1759162253709,-3000.0,0.00021638,2]
[388417320,1759162253720,-160.0,0.00021638,2]
[388417321,1759162253730,-346.92554585,0.00021638,2]
[388417322,1759162253740,-646.65982734,0.00021639,2]
[388417323,1759162253750,-151.23800144,0.00021639,2]
[388417324,1759162253760,-621.78829552,0.00021639,2]
[388417325,1759162253771,-586.51725379,0.0002167,2]
[388417326,1759162253782,-150.0,0.00021752,2]
[388417327,1759162253791,-183.79573144,0.00021752,2]
[388417328,1759162253801,-150.0,0.00021752,2]
[388417329,1759162253812,-150.0,0.00021752,2]
[388417330,1759162253822,-150.0,0.00021752,2]
[388417331,1759162253847,-150.0,0.00021752,2]
[388417332,1759162253859,-500.0,0.00021752,2]
[388417333,1759162253870,-500.0,0.00021752,2]
[388417334,1759162253881,-150.0,0.00021752,2]
[388417335,1759162253891,-150.0,0.00021752,2]
[388417336,1759162253901,-150.0,0.00021752,2]
[388417337,1759162253913,-150.0,0.00021752,2]
[388417338,1759162253924,-150.0,0.00021752,2]
[388417339,1759162253934,-500.0,0.00021752,2]
[388417340,1759162253944,-500.0,0.00021752,2]
[388417341,1759162253953,-150.0,0.00021752,2]
[388417342,1759162253963,-713.0,0.00021752,2]
[388417343,1759162253973,-500.0,0.00021752,2]
[388417344,1759162253984,-500.0,0.00021752,2]
[388417345,1759162253994,-150.0,0.00021752,2]
[388417346,1759162254004,-500.0,0.00021752,2]
[388417347,1759162254014,-150.0,0.00021752,2]
[388417348,1759162254025,-500.0,0.00021752,2]
[388417349,1759162254036,-478.0,0.00021752,2]
[388417350,1759162254046,-500.0,0.00021752,2]
[388417351,1759162254057,-2307.0,0.00021752,2]
[388417352,1759162254067,-150.0,0.00021752,2]
[388417353,1759162254078,-500.0,0.00021752,2]
[388417354,1759162254089,-2195.0,0.00021752,2]
[388417355,1759162254099,-150.0,0.00021752,2]
[388417356,1759162254110,-157.21239969,0.00021752,2]
[388417357,1759162254121,-500.0,0.00021752,2]
[388417359,1759162254131,-150.0,0.00021752,2]
[388417360,1759162254141,-150.0,0.00021752,2]
[388417361,1759162254152,-500.0,0.00021752,2]
[388417362,1759162254162,-500.0,0.00021752,2]
[388417363,1759162254172,-150.0,0.00021752,2]
[388417364,1759162254182,-150.0,0.00021752,2]
[388417365,1759162254192,-150.0,0.00021752,2]
[388417366,1759162254202,-588.0,0.00021752,2]
[388417367,1759162254214,-500.0,0.00021752,2]
[388417368,1759162254224,-1000.0,0.00021773,2]
[388417369,1759162254242,-146659.278885,0.00021781,7]
[388417371,1759162254252,-7257.0,0.000218,2]
[388417372,1759162254262,-173.52271755,0.00021804,19]
[388417373,1759162254274,-700.0,0.00021891,2]
[388417374,1759162254285,-157.99298176,0.000219,2]
[388417375,1759162254296,-631.3399551,0.000219,2]
[388417376,1759162254305,-151.0,0.00021918,2]
[388417377,1759162254317,-245.0,0.00021918,2]
[388417378,1759162254327,-324.455576,0.00021918,2]
[388417379,1759162254337,-324.455576,0.00021918,2]
[388417380,1759162254347,-324.455576,0.00021918,2]
[388417381,1759162254358,-324.455576,0.00021918,2]
[388417383,1759162254368,-161.033744,0.00021918,2]
[388417384,1759162254382,-255.289991,0.00021918,2]
[388417385,1759162254392,-255.289991,0.00021918,2]
[388417386,1759162254403,-255.289991,0.00021918,2]
[388417387,1759162254413,-255.289991,0.00021918,2]
[388417388,1759162254424,-255.289991,0.00021918,2]
[388417389,1759162254434,-255.289991,0.00021918,2]
[388417390,1759162254444,-255.289991,0.00021918,2]
[388417391,1759162254455,-255.289991,0.00021918,2]
[388417392,1759162254465,-5000.0,0.00021918,2]
[388417393,1759162254475,-181.08010149,0.00021918,2]
[388417395,1759162254486,-171.61,0.00021945,30]
[388417396,1759162254496,-200.0,0.00021947,2]
[388417397,1759162254506,-150.0,0.00021973,2]
[388417398,1759162254517,-4636.58,0.00022,7]
[388417399,1759162254528,-201387.73,0.00022,7]
[388417400,1759162254538,-208.53359321,0.00022,14]
[388417401,1759162254548,-38896.72,0.00022,2]
[388417402,1759162254558,-3755.99342408,0.00022,2]
[388417403,1759162254568,-474.44399431,0.00022,7]
[388417404,1759162254579,-2056.63,0.00022,2]
[388417405,1759162254589,-151.0,0.00022,7]
[388417406,1759162254598,-151.0,0.00022,7]
[388417408,1759162254608,-291.35392551,0.00022,7]
[388417409,1759162254618,-151.0,0.00022,7]
[388417410,1759162254633,-151.0,0.00022,7]
[388417411,1759162254643,-151.0,0.00022,7]
[388417412,1759162254653,-151.0,0.00022,7]
[388417413,1759162254664,-151.0,0.00022,7]
[388417414,1759162254674,-151.0,0.00022,7]
[388417415,1759162254684,-151.0,0.00022,2]
[388417416,1759162254694,-151.0,0.00022,7]
[388417417,1759162254704,-157.366489,0.00022,7]
[388417419,1759162254716,-151.0,0.00022,7]
[388417420,1759162254726,-324.455576,0.00022,7]
[388417421,1759162254736,-324.455576,0.00022,7]
[388417422,1759162254746,-324.455576,0.00022,7]
[388417423,1759162254756,-324.455576,0.00022,7]
[388417424,1759162254766,-151.0,0.00022,7]
[388417425,1759162254777,-151.0,0.00022,7]
[388417426,1759162254787,-151.0,0.00022,7]
[388417427,1759162254797,-151.0,0.00022,7]
[388417428,1759162254807,-155.391337,0.00022,7]
[388417429,1759162254819,-151.0,0.00022,7]
[388417430,1759162254829,-151.0,0.00022,7]
[388417432,1759162254841,-151.0,0.00022,7]
[388417433,1759162254851,-264.415768,0.00022,7]
[388417434,1759162254861,-264.415768,0.00022,7]
[388417435,1759162254872,-264.415768,0.00022,7]
[388417436,1759162254882,-264.415768,0.00022,7]
[388417437,1759162254893,-151.0,0.00022,7]
[388417438,1759162254903,-151.0,0.00022,7]
[388417439,1759162254914,-282.308196,0.00022,7]
[388417440,1759162254924,-151.0,0.00022,7]
[388417441,1759162254934,-151.0,0.00022,7]
[388417442,1759162254945,-151.0,0.00022,7]
[388417444,1759162254955,-151.0,0.00022,7]
[388417445,1759162254965,-151.0,0.00022,7]
[388417446,1759162254975,-151.0,0.00022,7]
[388417447,1759162254986,-277.551532,0.00022,7]
[388417448,1759162254996,-151.0,0.00022,7]
[388417449,1759162255006,-185.628927,0.00022,7]
[388417450,1759162255021,-279.171348,0.00022,7]
[388417451,1759162255032,-255.289991,0.00022,7]
[388417452,1759162255042,-165.795924,0.00022,7]
[388417453,1759162255053,-255.289991,0.00022,7]
[388417454,1759162255063,-165.795924,0.00022,7]
[388417456,1759162255075,-255.289991,0.00022,7]
[388417457,1759162255085,-165.795924,0.00022,7]
[388417458,1759162255096,-151.0,0.00022,7]
[388417459,1759162255107,-255.289991,0.00022,7]
[388417460,1759162255117,-165.795924,0.00022,7]
[388417461,1759162255128,-151.0,0.00022,7]
[388417462,1759162255141,-151.0,0.00022,7]
[388417463,1759162255152,-184.385177,0.00022,7]
[388417464,1759162255163,-184.385177,0.00022,7]
[388417465,1759162255174,-184.385177,0.00022,7]
[388417466,1759162255185,-184.385177,0.00022,7]
[388417468,1759162255197,-151.0,0.00022,7]
[388417469,1759162255207,-151.0,0.00022,7]
[388417470,1759162255219,-151.0,0.00022,7]
[388417471,1759162255230,-265.47725,0.00022,7]
[388417472,1759162255241,-151.0,0.00022,7]
[388417473,1759162255255,-151.0,0.00022,7]
[388417474,1759162255265,-12466.48788262,0.00022,2]
[388417475,1759162255276,-151.0,0.00022,7]
[388417476,1759162255287,-258.015425,0.00022,7]
[388417477,1759162255297,-258.015425,0.00022,7]
[388417479,1759162255308,-258.015425,0.00022,7]
[388417480,1759162255318,-258.015425,0.00022,7]
[388417481,1759162255329,-167.739812,0.00022,7]
[388417482,1759162255339,-151.0,0.00022,7]
[388417483,1759162255351,-167.739812,0.00022,7]
[388417484,1759162255362,-167.739812,0.00022,7]
[388417485,1759162255373,-167.739812,0.00022,7]
[388417486,1759162255388,-151.0,0.00022,7]
[388417487,1759162255399,-479.535177,0.00022,7]
[388417488,1759162255410,-151.0,0.00022,7]
[388417489,1759162255422,-151.0,0.00022,7]
[388417490,1759162255433,-479.535177,0.00022,7]
[388417491,1759162255443,-151.0,0.00022,7]
[388417492,1759162255455,-479.535177,0.00022,7]
[388417493,1759162255466,-479.535177,0.00022,7]
[388417494,1759162255476,-151.0,0.00022,7]
[388417495,1759162255489,-151.0,0.00022,7]
[388417496,1759162255499,-183.415345,0.00022,7]
[388417497,1759162255510,-151.0,0.00022,7]
[388417498,1759162255521,-183.415345,0.00022,7]
[388417499,1759162255532,-183.415345,0.00022,7]
[388417500,1759162255543,-151.0,0.00022,7]
[388417501,1759162255553,-183.415345,0.00022,7]
[388417502,1759162255564,-155.474325,0.00022,7]
[388417503,1759162255574,-1664.126647,0.00022,7]
[388417504,1759162255585,-155.474325,0.00022,7]
[388417505,1759162255595,-1664.126647,0.00022,7]
[388417506,1759162255605,-155.474325,0.00022,7]
[388417507,1759162255615,-1664.126647,0.00022,7]
[388417508,1759162255626,-155.474325,0.00022,7]
[388417509,1759162255637,-2552.287152,0.00022,7]
[388417510,1759162255647,-1664.126647,0.00022,7]
[388417511,1759162255657,-151.0,0.00022,7]
[388417512,1759162255668,-151.0,0.00022,7]
[388417513,1759162255678,-2637.117872,0.00022,7]
[388417514,1759162255688,-224.291622,0.00022,7]
[388417515,1759162255699,-2637.117872,0.00022,7]
[388417516,1759162255711,-151.0,0.00022,7]
[388417517,1759162255722,-7154.158261,0.00022,7]
[388417518,1759162255734,-224.291622,0.00022,7]
[388417519,1759162255744,-2637.117872,0.00022,7]
[388417520,1759162255755,-151.0,0.00022,7]
[388417521,1759162255766,-151.0,0.00022,7]
[388417522,1759162255777,-7154.158261,0.00022,7]
[388417523,1759162255789,-2637.117872,0.00022,7]
[388417524,1759162255800,-224.291622,0.00022,7]
[388417525,1759162255811,-151.0,0.00022,7]
[388417526,1759162255822,-7154.158261,0.00022,7]
[388417527,1759162255833,-224.291622,0.00022,7]
[388417528,1759162255844,-7154.158261,0.00022,7]
[388417529,1759162255855,-151.0,0.00022,7]
[388417530,1759162255866,-151.0,0.00022,7]
[388417531,1759162255878,-151.0,0.00022,7]
[388417532,1759162255890,-151.0,0.00022,7]
[388417533,1759162255901,-151.0,0.00022,7]
[388417534,1759162255913,-151.0,0.00022,7]
[388417535,1759162255924,-157.671799,0.00022,7]
[388417537,1759162256313,-157.671799,0.00022,7]
[388417538,1759162256403,-157.671799,0.00022,7]
[388417539,1759162256415,-157.671799,0.00022,7]
[388417540,1759162256426,-151.0,0.00022,7]
[388417541,1759162256437,-151.0,0.00022,7]
[388417542,1759162256447,-252.142394,0.00022,7]
[388417543,1759162256459,-151.0,0.00022,7]
[388417544,1759162256469,-1113.62,0.00022,2]
[388417545,1759162256479,-501.022181,0.00022,2]
[388417546,1759162256490,-501.022181,0.00022,2]
[388417547,1759162256500,-501.022181,0.00022,2]
[388417548,1759162256511,-4000.0,0.00022,4]
[388417549,1759162256522,-501.022181,0.00022,2]
[388417550,1759162256534,-151.0,0.00022,7]
[388417551,1759162256544,-151.0,0.00022,7]
[388417552,1759162256555,-318.567197,0.00022,7]
[388417553,1759162256566,-318.567197,0.00022,7]
[388417554,1759162256577,-318.567197,0.00022,7]
[388417555,1759162256595,-151.0,0.00022,7]
[388417556,1759162256607,-318.567197,0.00022,7]
[388417557,1759162256619,-151.0,0.00022,7]
[388417558,1759162256630,-151.0,0.00022,7]
[388417559,1759162256641,-151.0,0.00022,7]
[388417560,1759162256652,-977.131095,0.00022,7]
[388417561,1759162256663,-977.131095,0.00022,7]
[388417562,1759162256674,-977.131095,0.00022,7]
[388417563,1759162256684,-977.131095,0.00022,7]
[388417564,1759162256695,-151.0,0.00022,7]
[388417565,1759162256706,-404.402045,0.00022,7]
[388417566,1759162256717,-404.402045,0.00022,7]
[388417567,1759162256728,-404.402045,0.00022,7]
[388417568,1759162256739,-150.0,0.00022026,2]
[388417569,1759162256749,-150.0,0.00022026,2]
[388417570,1759162256761,-150.0,0.00022026,2]
[388417571,1759162256772,-559.02512706,0.00022026,2]
[388417572,1759162256785,-500.0,0.00022026,2]
[388417574,1759162256795,-150.0,0.00022026,2]
[388417575,1759162256806,-150.0,0.00022026,2]
[388417576,1759162256816,-150.0,0.00022026,2]
[388417577,1759162256827,-150.0,0.00022026,2]
[388417578,1759162256838,-500.0,0.00022026,2]
[388417579,1759162256849,-500.0,0.00022026,2]
[388417580,1759162256860,-150.0,0.00022026,2]
[388417581,1759162256871,-713.0,0.00022026,2]
[388417582,1759162256883,-500.0,0.00022026,2]
[388417583,1759162256895,-500.0,0.00022026,2]
[388417584,1759162256909,-150.0,0.00022026,2]
[388417585,1759162256922,-500.0,0.00022026,2]
[388417586,1759162256933,-297.51631309,0.00022026,2]
[388417587,1759162256944,-500.0,0.00022026,2]
[388417589,1759162256955,-478.0,0.00022026,2]
[388417591,1759162256966,-500.0,0.00022026,2]
[388417593,1759162256976,-2307.0,0.00022026,2]
[388417596,1759162256992,-150.0,0.00022026,2]
[388417598,1759162257004,-500.0,0.00022026,2]
[388417600,1759162257016,-2195.0,0.00022026,2]
[388417601,1759162257029,-150.0,0.00022026,2]
[388417602,1759162257040,-500.0,0.00022026,2]
[388417603,1759162257052,-150.0,0.00022026,2]
[388417604,1759162257064,-500.0,0.00022026,2]
[388417605,1759162257076,-500.0,0.00022026,2]
[388417606,1759162257087,-150.0,0.00022026,2]
[388417607,1759162257099,-588.0,0.00022026,2]
[388417608,1759162257111,-500.0,0.00022026,2]
[388417609,1759162257123,-302.1670652,0.00022027,2]
[388417611,1759162257135,-318.95412438,0.00022027,2]
[388417613,1759162257147,-402.88942026,0.00022027,2]
[388417615,1759162257158,-1500.0,0.00022068,2]
[388417616,1759162257169,-1500.0,0.00022068,2]
[388417617,1759162257181,-1500.0,0.00022068,2]
[388417618,1759162257193,-1500.0,0.00022068,2]
[388417619,1759162257204,-1500.0,0.00022068,2]